Cogmind - Beta 13 @@@ ROGUE MODE // 2024.04.12 @ 03:00:07 // Winter2022/Polymind Player: GregoriusTechneticies Result: Destroyed by G-67 Veteran with Field Laser Performance ------------- Evolutions (6) 3000 Regions Visited (10) 2000 Robots Destroyed (0) 0 Value Destroyed (0) 0 Prototype IDs (2) 40 Alien Tech Used (0) 0 Bonus (5800) 5800 TOTAL SCORE: 10740 Bonus ------- Polymind Skill 3002 Pacifist 2218 Follower Combat Kills 80 Entered DSFs 500 Cogmind --------- Core Integrity 0/1150 Matter 0/0 Energy 25/25 System Corruption 0% Temperature Warm (161) Movement Core (350) Ox6 Location -4/Factory Parts ------- > --- POWER (1) -------- (None) > --- PROPULSION (2) --- (None) > --- UTILITY (3) ------ Large Storage Unit Advanced Weight Redist. System Transport Network Coupler > --- WEAPON (0) ------- (None) > --- INVENTORY (10) --- Experimental Terrain Scan Processor Improved Heavy Machine Gun Improved Heavy Machine Gun Faulty Improved Heavy Machine Gun Improved Heavy Machine Gun Peak State ------------ > --- POWER ------------ Improved Ion Engine > --- PROPULSION ------- Medium Treads Medium Treads > --- UTILITY ---------- Large Storage Unit Advanced Weight Redist. System Transport Network Coupler > --- WEAPON ----------- (None) > --- INVENTORY -------- Experimental Terrain Scan Processor Improved Heavy Machine Gun Improved Heavy Machine Gun Improved Heavy Machine Gun Improved Heavy Machine Gun [Rating: 18] Favorites ----------- Power Light Ion Engine Engine Light Ion Engine Propulsion Compact Wheel Treads Medium Treads Wheel Compact Wheel Utility Small Storage Unit Device Tractor Beam Storage Small Storage Unit Processor Terrain Scan Processor Weapon Welding Torch Special Weapon Welding Torch Build | -11 -10 -9 -9 -8 -7 -7 -7 -5 -5 -4 ------- Run | Yrd Mat Mat Min Mat Fac Sto Rec Fac DSF Fac Slots Evolved . | . . . . . . . . . . . Power . | . . . . . . . . . . . Propulsion . | . . . . . . . . . . . Utility . | . . . . . . . . . . . Weapon . | . . . . . . . . . . . Parts Attached . | . . . . . . . . . . . Power . | . . . . . . . . . . . Engine . | . . . . . . . . . . . Core . | . . . . . . . . . . . Reactor . | . . . . . . . . . . . Propulsion . | . . . . . . . . . . . Treads . | . . . . . . . . . . . Leg . | . . . . . . . . . . . Wheel . | . . . . . . . . . . . Hover . | . . . . . . . . . . . Flight . | . . . . . . . . . . . Utility . | . . . . . . . . . . . Device . | . . . . . . . . . . . Storage . | . . . . . . . . . . . Processor . | . . . . . . . . . . . Hackware . | . . . . . . . . . . . Protection . | . . . . . . . . . . . Artifact . | . . . . . . . . . . . Weapon . | . . . . . . . . . . . Energy Gun . | . . . . . . . . . . . Energy Cannon . | . . . . . . . . . . . Ballistic Gun . | . . . . . . . . . . . Ballistic Cannon . | . . . . . . . . . . . Launcher . | . . . . . . . . . . . Special Weapon . | . . . . . . . . . . . Impact Weapon . | . . . . . . . . . . . Slashing Weapon . | . . . . . . . . . . . Piercing Weapon . | . . . . . . . . . . . Special Melee Weapon . | . . . . . . . . . . . Unidentified Prototypes . | . . . . . . . . . . . Parts Lost 14 | . 1 . . . 5 . . . . 8 Power 3 | . . . . . 1 . . . . 2 Propulsion 6 | . 1 . . . 1 . . . . 4 Utility 3 | . . . . . 2 . . . . 1 Weapon 2 | . . . . . 1 . . . . 1 Highest Loss Streak 8 | . 1 . . . 2 . . . . 8 To Critical Strikes . | . . . . . . . . . . . Average Slot Usage (%) 82 | . 93 85 85 85 50 79 100 100 100 89 Engine 14 | . 17 14 14 14 7 15 20 20 20 16 Wheel 24 | . 34 14 14 14 2 30 40 40 40 29 Device 23 | . 20 28 28 28 25 18 20 20 20 23 Storage 9 | . 14 . . . . 15 20 20 20 11 Processor 5 | . 3 14 14 14 12 . . . . 1 Special Weapon 4 | . 3 14 14 14 2 . . . . 4 Naked Turns 21 | . 17 . . . . . . . . 4 Heaviest Build 27 | 9 9 6 6 6 6 9 9 9 9 27 Greatest Support 65 | 32 32 10 10 10 10 32 32 32 32 65 Greatest Overweight (x) 6 | . . . . . 1 . . . . 6 Average Overweight (x) . | . . . . . . . . . . . Largest Inventory Capacity 10 | 4 4 . . . . 4 4 4 4 10 Average Capacity 2 | 3 2 . . . . 3 4 4 4 3 Most Carried 5 | 4 4 . . . . 3 4 3 3 5 Average Carried 1 | 1 2 . . . . . 2 3 3 2 Final Capacity 10 | 4 . . . . . 4 4 4 4 10 Final Carried 5 | 4 . . . . . . 3 3 3 5 Class Distribution -------------------- 45% | Recycler 43% | Builder 7% | Tunneler Dominant Class ---------------- Recycler | -10/Materials Builder | -9/Materials Builder | -9/Mines Builder | -8/Materials Builder | -7/Factory Recycler | -7/Storage Recycler | -7/Recycling Recycler | -5/Factory Recycler | -5/DSF Recycler | -4/Factory Resources | -11 -10 -9 -9 -8 -7 -7 -7 -5 -5 -4 ----------- Run | Yrd Mat Mat Min Mat Fac Sto Rec Fac DSF Fac Matter Collected . | . . . . . . . . . . . Remotely . | . . . . . . . . . . . Salvage Created . | . . . . . . . . . . . Parts . | . . . . . . . . . . . Haulers Intercepted . | . . . . . . . . . . . Recyclers Shooed . | . . . . . . . . . . . Parts Field Recycled . | . . . . . . . . . . . Retrieved Matter . | . . . . . . . . . . . Parts Self-Destructed . | . . . . . . . . . . . Prevented . | . . . . . . . . . . . Kills | -11 -10 -9 -9 -8 -7 -7 -7 -5 -5 -4 ------- Run | Yrd Mat Mat Min Mat Fac Sto Rec Fac DSF Fac Combat Hostiles Destroyed . | . . . . . . . . . . . Classes Destroyed . | . . . . . . . . . . . Best Kill Streak . | . . . . . . . . . . . Combat Bots Only . | . . . . . . . . . . . Max Kills in Single Turn . | . . . . . . . . . . . Gunslinging . | . . . . . . . . . . . Exploded . | . . . . . . . . . . . Melee . | . . . . . . . . . . . Uniques/NPCs Destroyed . | . . . . . . . . . . . Combat | -11 -10 -9 -9 -8 -7 -7 -7 -5 -5 -4 -------- Run | Yrd Mat Mat Min Mat Fac Sto Rec Fac DSF Fac Hostile Shots Fired 163 | . 5 1 . 4 42 1 . . . 110 Missed 32 | . 1 . . 2 15 . . . . 14 Damage Taken 2559 | . 89 9 . 30 420 15 . . . 1996 Core 1480 | . 39 . . . 282 . . . . 1159 Absorbed by Shields . | . . . . . . . . . . . Core Remaining (%) 90 | 100 84 . 100 100 . . 59 . 100 . Volleys Fired . | . . . . . . . . . . . Largest . | . . . . . . . . . . . Hottest . | . . . . . . . . . . . Shots Fired . | . . . . . . . . . . . Gun . | . . . . . . . . . . . Cannon . | . . . . . . . . . . . Launcher . | . . . . . . . . . . . Special . | . . . . . . . . . . . Kinetic . | . . . . . . . . . . . Thermal . | . . . . . . . . . . . Explosive . | . . . . . . . . . . . Electromagnetic . | . . . . . . . . . . . Robot Hit Streak . | . . . . . . . . . . . Robot Miss Streak . | . . . . . . . . . . . Penetration Max . | . . . . . . . . . . . Secondary Targets . | . . . . . . . . . . . Shots Hit Robots . | . . . . . . . . . . . Core Hits 2 | . . . . . 2 . . . . . Critical Kills . | . . . . . . . . . . . Critical Parts Destroyed . | . . . . . . . . . . . Critical Strikes . | . . . . . . . . . . . Melee Attacks . | . . . . . . . . . . . Impact . | . . . . . . . . . . . Slashing . | . . . . . . . . . . . Piercing . | . . . . . . . . . . . Sneak Attacks . | . . . . . . . . . . . Combat Hostiles . | . . . . . . . . . . . Follow-up Attacks . | . . . . . . . . . . . Damage Inflicted 75 | . 1 . . . 74 . . . . . Guns . | . . . . . . . . . . . Cannons . | . . . . . . . . . . . Explosions . | . . . . . . . . . . . Melee . | . . . . . . . . . . . Ramming 75 | . 1 . . . 74 . . . . . Kinetic . | . . . . . . . . . . . Thermal . | . . . . . . . . . . . Explosive . | . . . . . . . . . . . Electromagnetic . | . . . . . . . . . . . Impact . | . . . . . . . . . . . Slashing . | . . . . . . . . . . . Piercing . | . . . . . . . . . . . Highest Corruption 2 | . . . . . 2 2 2 . . . Average Corruption 1 | . . . . . 1 2 2 . . . Corruption Purged . | . . . . . . . . . . . Corruption Blocked . | . . . . . . . . . . . Effects 4 | . . . . . 1 2 1 . . . Message Errors 1 | . . . . . 1 . . . . . Data Loss (minor) 2 | . . . . . . 2 . . . . Alerts 1 | . . . . . . . 1 . . . Overload Shots . | . . . . . . . . . . . Overflow Damage . | . . . . . . . . . . . Projectiles . | . . . . . . . . . . . Explosions . | . . . . . . . . . . . Melee . | . . . . . . . . . . . Knockbacks 1 | . . . . . 1 . . . . . Impact 1 | . . . . . 1 . . . . . Kinetic . | . . . . . . . . . . . Secondary . | . . . . . . . . . . . Self-Inflicted Damage 34 | . . . . . 34 . . . . . Shots . | . . . . . . . . . . . Rammed 22 | . 1 . . . 21 . . . . . Targets Rammed 22 | . 1 . . . 21 . . . . . Kicked . | . . . . . . . . . . . Crushed . | . . . . . . . . . . . Highest Temperature 158 | . 1 . . . 8 4 . . . 158 Average Temperature 59 | . 1 . . . 8 4 . . . 68 Received Heat Transfer 659 | . 24 . . 9 180 9 . . . 437 Siege Activations . | . . . . . . . . . . . Robots Corrupted . | . . . . . . . . . . . Combat Hostiles . | . . . . . . . . . . . Parts Fried . | . . . . . . . . . . . Impact Corruptions . | . . . . . . . . . . . Robots Melted . | . . . . . . . . . . . Combat Hostiles . | . . . . . . . . . . . Parts Melted . | . . . . . . . . . . . Heat Transferred . | . . . . . . . . . . . Parts Sabotaged . | . . . . . . . . . . . Parts Stolen . | . . . . . . . . . . . Parts Stripped . | . . . . . . . . . . . Power Chain Reactions . | . . . . . . . . . . . Alert | -11 -10 -9 -9 -8 -7 -7 -7 -5 -5 -4 ------- Run | Yrd Mat Mat Min Mat Fac Sto Rec Fac DSF Fac Peak Influence 178 | . 178 85 33 57 125 174 67 78 58 35 Initial 78 | . . 70 33 12 25 63 67 78 58 30 Average 67 | . 110 70 33 20 84 120 67 78 58 29 Maximum Alert Level . | . . . . . . . . . . . Low Security (%) 100 | 100 100 100 100 100 100 100 100 100 100 100 Level 1 . | . . . . . . . . . . . Level 2 . | . . . . . . . . . . . Level 3 . | . . . . . . . . . . . Level 4 . | . . . . . . . . . . . Level 5 . | . . . . . . . . . . . High Security . | . . . . . . . . . . . Max Security . | . . . . . . . . . . . Squads Dispatched 4 | . 1 . . . 2 . . . . 1 Investigation . | . . . . . . . . . . . Extermination . | . . . . . . . . . . . Reinforcement 4 | . 1 . . . 2 . . . . 1 Assault . | . . . . . . . . . . . Garrison . | . . . . . . . . . . . Intercept . | . . . . . . . . . . . Searches Triggered . | . . . . . . . . . . . Construction Impeded . | . . . . . . . . . . . Haulers Reinforced 1 | . . . . . 1 . . . . . Active Scanning Responses . | . . . . . . . . . . . Cargo Convoy Interrupts . | . . . . . . . . . . . Stealth | -11 -10 -9 -9 -8 -7 -7 -7 -5 -5 -4 --------- Run | Yrd Mat Mat Min Mat Fac Sto Rec Fac DSF Fac Distress Signals 1 | . . 1 . . . . . . . . Communications Jammed . | . . . . . . . . . . . Distress Signals . | . . . . . . . . . . . Times Spotted 41 | . 5 3 . 1 13 1 . . . 18 Peak Tracking Total 12 | . 2 6 . 1 7 2 . . . 12 Tactical Retreats 4 | . . . . . 3 1 . . . . Traps | -11 -10 -9 -9 -8 -7 -7 -7 -5 -5 -4 ------- Run | Yrd Mat Mat Min Mat Fac Sto Rec Fac DSF Fac Traps Triggered 2 | . 1 . . . . . . . . 1 Indirectly . | . . . . . . . . . . . Trap Hack Attempts . | . . . . . . . . . . . Triggered . | . . . . . . . . . . . Disarmed . | . . . . . . . . . . . Reprogrammed . | . . . . . . . . . . . Reused . | . . . . . . . . . . . Traps Extracted . | . . . . . . . . . . . Installed . | . . . . . . . . . . . Triggered . | . . . . . . . . . . . Machines | -11 -10 -9 -9 -8 -7 -7 -7 -5 -5 -4 ---------- Run | Yrd Mat Mat Min Mat Fac Sto Rec Fac DSF Fac Machines Disabled . | . . . . . . . . . . . Max in Single Turn . | . . . . . . . . . . . Machines Repaired . | . . . . . . . . . . . Machines Dismantled . | . . . . . . . . . . . Machines Sabotaged . | . . . . . . . . . . . Overloaded Fab Kills . | . . . . . . . . . . . Hacking | -11 -10 -9 -9 -8 -7 -7 -7 -5 -5 -4 --------- Run | Yrd Mat Mat Min Mat Fac Sto Rec Fac DSF Fac Machines Accessed 7 | . 1 . . . 1 . 1 1 . 3 Terminals 7 | . 1 . . . 1 . 1 1 . 3 Fabricators . | . . . . . . . . . . . Repair Stations . | . . . . . . . . . . . Recycling Units . | . . . . . . . . . . . Scanalyzers . | . . . . . . . . . . . Garrison Access . | . . . . . . . . . . . Total Hacks 13 | . 2 . . . 1 . 4 2 . 4 Successful 6 | . 1 . . . 1 . 1 1 . 2 Failed 7 | . 1 . . . . . 3 1 . 2 Catastrophic 3 | . . . . . . . 2 . . 1 Database Lockouts . | . . . . . . . . . . . Manual 8 | . 2 . . . . 1 4 . . 1 Terminals 13 | . 2 . . . 1 . 4 2 . 4 Fabricators . | . . . . . . . . . . . Repair Stations . | . . . . . . . . . . . Recycling Units . | . . . . . . . . . . . Scanalyzers . | . . . . . . . . . . . Garrison Access . | . . . . . . . . . . . Terminal Hacks 4 | . . . . . 1 . . 1 . 2 Open DSF 4 | . . . . . 1 . . 1 . 2 Fabricator Hacks . | . . . . . . . . . . . Repair Station Hacks . | . . . . . . . . . . . Recycling Unit Hacks . | . . . . . . . . . . . Scanalyzer . | . . . . . . . . . . . Garrison Access Hacks . | . . . . . . . . . . . Unauthorized Hacks 2 | . 1 . . . . . 1 . . . Terminals 2 | . 1 . . . . . 1 . . . Botnet 2 | . 1 . . . . . 1 . . . Fabricators . | . . . . . . . . . . . Repair Stations . | . . . . . . . . . . . Recycling Units . | . . . . . . . . . . . Scanalyzers . | . . . . . . . . . . . Garrison Access . | . . . . . . . . . . . Data Cores Recovered . | . . . . . . . . . . . Used . | . . . . . . . . . . . Hacking Detections 5 | . 1 . . . . . 1 1 . 2 Full Trace Events 1 | . . . . . . . 1 . . . Feedback Events . | . . . . . . . . . . . Feedback Blocked . | . . . . . . . . . . . Robot Schematics Acquired . | . . . . . . . . . . . Robots Built . | . . . . . . . . . . . Authchips . | . . . . . . . . . . . Time . | . . . . . . . . . . . Total Robot Build Rating . | . . . . . . . . . . . Part Schematics Acquired . | . . . . . . . . . . . Parts Built . | . . . . . . . . . . . Authchips . | . . . . . . . . . . . Time . | . . . . . . . . . . . Total Part Build Rating . | . . . . . . . . . . . Parts Repaired . | . . . . . . . . . . . Time . | . . . . . . . . . . . Parts Recycled . | . . . . . . . . . . . Recycled Matter . | . . . . . . . . . . . Retrieved Matter . | . . . . . . . . . . . Retrieved Components . | . . . . . . . . . . . Parts Scanalyzed . | . . . . . . . . . . . Part Schematics Acquired . | . . . . . . . . . . . Parts Damaged . | . . . . . . . . . . . Bothacking | -11 -10 -9 -9 -8 -7 -7 -7 -5 -5 -4 ------------ Run | Yrd Mat Mat Min Mat Fac Sto Rec Fac DSF Fac Used RIF Installer . | . . . . . . . . . . . Robots Hacked 3 | . 1 . . . . 1 . . . 1 Non-combat 3 | . 1 . . . . 1 . . . 1 Combat . | . . . . . . . . . . . Robot Hacks Applied 5 | . 1 . . . . 1 . . . 3 map_walls 1 | . 1 . . . . . . . . . find_fabricator 1 | . . . . . . . . . . 1 find_dsf 1 | . . . . . . . . . . 1 locate_stockpiles 1 | . . . . . . . . . . 1 find_recycling 1 | . . . . . . 1 . . . . Relay Couplers Released . | . . . . . . . . . . . Fabnet Peak Effective % . | . . . . . . . . . . . Robots Rewired . | . . . . . . . . . . . Allies Hacked . | . . . . . . . . . . . Hacks Repelled . | . . . . . . . . . . . Allies | -11 -10 -9 -9 -8 -7 -7 -7 -5 -5 -4 -------- Run | Yrd Mat Mat Min Mat Fac Sto Rec Fac DSF Fac Total Allies 2 | . . . . . . 2 . . . . Largest Group 2 | . . . . . . 2 . . . . Highest-Rated Group 127 | . . . . . . 127 . . . . Highest-Rated Ally 100 | . . . . . . 100 . . . . Total Orders . | . . . . . . . . . . . Ally Attacks 9 | . . . . . . 9 . . . . Total Damage 335 | . . . . . . 335 . . . . Kills 2 | . . . . . . 2 . . . . Allies Corrupted . | . . . . . . . . . . . Allies Melted . | . . . . . . . . . . . Intel | -11 -10 -9 -9 -8 -7 -7 -7 -5 -5 -4 ------- Run | Yrd Mat Mat Min Mat Fac Sto Rec Fac DSF Fac Robot Analysis Total 4 | 1 1 . . . . . . . . 2 Derelict Logs Recovered 1 | . . . 1 . . . . . . . Drone Launches . | . . . . . . . . . . . Drone Recoveries . | . . . . . . . . . . . Exploration | -11 -10 -9 -9 -8 -7 -7 -7 -5 -5 -4 ------------- Run | Yrd Mat Mat Min Mat Fac Sto Rec Fac DSF Fac Turns Passed 1524 | 62 183 85 165 57 239 208 144 54 29 298 Spaces Moved 1715 | 65 189 106 206 72 326 224 138 53 30 306 Core 402 | 15 14 . . . 263 83 . . . 27 Treads 13 | . . . . . . . . . . 13 Legs . | . . . . . . . . . . . Wheels 1300 | 50 175 106 206 72 63 141 138 53 30 266 Hover . | . . . . . . . . . . . Flight . | . . . . . . . . . . . Fastest Speed 50 | 50 50 80 80 80 50 50 100 100 100 50 Average Speed 84 | 88 91 80 80 80 66 81 100 100 100 94 Slowest Speed 350 | 100 100 80 80 80 100 100 100 100 100 350 Overloaded Moves . | . . . . . . . . . . . Propulsion Burnouts . | . . . . . . . . . . . Robots Hopped . | . . . . . . . . . . . Cave-ins Triggered . | . . . . . . . . . . . Exploration Rate (%) 24 | 3 40 22 60 13 13 37 30 2 39 10 Regions Visited 10 Branch Regions 3 Pre-discovered Areas 1 | . . . 1 . . . . . . . Known Exits Taken 1 | . . . . . . . . 1 . . Unknown Exits Taken 8 | 1 1 1 1 1 1 1 1 . . . Scrap Searched 1 | . . . 1 . . . . . . . Spaces Dug . | . . . . . . . . . . . Terrain Destroyed . | . . . . . . . . . . . Melee . | . . . . . . . . . . . Projectile . | . . . . . . . . . . . AOE . | . . . . . . . . . . . Terrain Rammed . | . . . . . . . . . . . Walls Destroyed . | . . . . . . . . . . . Machines Disabled . | . . . . . . . . . . . Actions | -11 -10 -9 -9 -8 -7 -7 -7 -5 -5 -4 --------- Run | Yrd Mat Mat Min Mat Fac Sto Rec Fac DSF Fac Total 1788 | 70 200 105 205 71 346 249 144 54 29 315 Wait 24 | . 8 . . . . 6 . 1 . 9 Move 1706 | 64 188 105 205 71 325 223 137 53 29 306 Hop . | . . . . . . . . . . . Pick Up 20 | 5 . . . . . 10 5 . . . Fast Attach . | . . . . . . . . . . . Attach . | . . . . . . . . . . . Detach . | . . . . . . . . . . . Swap . | . . . . . . . . . . . Drop 1 | 1 . . . . . . . . . . Fire . | . . . . . . . . . . . Melee . | . . . . . . . . . . . Ram 22 | . 1 . . . 21 . . . . . Kick . | . . . . . . . . . . . Crush . | . . . . . . . . . . . Escape Stasis . | . . . . . . . . . . . Rewire 1 | . 1 . . . . . . . . . Trap . | . . . . . . . . . . . Miscellaneous 14 | . 2 . . . . 10 2 . . . Route ------- -11/Scrapyard -10/Materials -9/Materials -9/Mines -8/Materials -7/Factory -7/Storage -7/Recycling -5/Factory -5/DSF -4/Factory History --------- Turn | Location | Event 5 | -11/Scrapyard | Discovered new exit (range 13) 63 | -11/Scrapyard | Entered Materials 235 | -10/Materials | Discovered new exit (range 14) 246 | -10/Materials | Entered another Materials area 319 | -9/Materials | Discovered new exit (range 9) 331 | -9/Materials | Entered Mines 398 | -9/Mines | Learned location of Storage (-7) 439 | -9/Mines | Learned location of 1 exit from Proximity Caves 492 | -9/Mines | Discovered new exit (range 5) 496 | -9/Mines | Entered Materials 546 | -8/Materials | Discovered new exit (range 10) 553 | -8/Materials | Entered Factory 786 | -7/Factory | Discovered new exit (range 14) 792 | -7/Factory | Entered Storage 821 | -7/Storage | Met 01-MTF 998 | -7/Storage | Discovered new exit (range 3) 1000 | -7/Storage | Entered Recycling 1000 | -7/Recycling | Accompanied by 1 ally (01-MTF) 1005 | -7/Recycling | 01-MTF left 1006 | -7/Recycling | Found Scrap Engine 1132 | -7/Recycling | Discovered new exit (range 9) 1144 | -7/Recycling | Entered Factory 1198 | -5/Factory | Identified exit to DSF 1198 | -5/Factory | Entered DSF 1214 | -5/DSF | Discovered new exit (range 13) 1227 | -5/DSF | Entered Factory 1518 | -4/Factory | Core integrity fell below 50% 1523 | -4/Factory | Core integrity fell below 20% 1525 | -4/Factory | Destroyed by G-67 Veteran with Field Laser Last Messages --------------- 01480_ O-16 Technician uses terminal to summon reinforcements. 01480_ ALERT: Hostiles spotted, dispatching reinforcements to Terminal F014. 01480_ O-16 Technician locks terminal. 01481_ R-10 Processor collects Imp. Terrain Scanner. 01489_ Lgt. Ion Engine destroyed. 01489_ Seismic Detector destroyed. 01489_ Lost control of T-07 Excavator. 01492_ Took control of A-15 Conveyor. 01492_ Extracted analysis data for A-15 Conveyor. 01500_ Critical hit (Burn: +50). 01507_ Imp. Ion Engine destroyed. 01512_ Critical hit (Burn: +50). 01515_ Med. Treads destroyed. 01515_ Critical hit (Burn: +37). 01516_ Med. Treads destroyed. 01522_ K-01 Serf destroyed. Map ----- +----------------------------------------------------+ | | | | | | | | | ###??????????????????????????????????????????????? | | #??????????????????????????????????????????????? | | #??????????????????????????????????????????????? | | #??????????????????????????????????????????????? | | #??????????????????????????##############??????? | | " #?????????????????????????# #??????? | | " ##?#???????????????????????# #??????? | | " #?##########???????????????# =! #??????? | | " #?# ###########?????# =! """" #??????? | | #?# T # """ #?????# =! """" #??????? | | ##### # ""F"" #?????# """" #??????? | | + "" # "" "" #?????# """" #??????? | | ##??# "" # #?????# """" #??????? | | ????# """ # """ """ #?????# """" #??????? | | ##### """ # """ """ #?????# #??????? | | " """ # """ """ #?????# #??????? | | # # #?????# #??????? | | #####+######+###################+######??????? | | ! g #???????? | | #???????? | | g s #???????? | | g A sg #???????? | | ssl s =%gg #???????? | | ##+####################/####### T# ###???????? | | #????????????# #### #?????????? | | #????????????# #??# #?????????? | | !#????????????# #??# #?????????? | | #????????????# == #??# ! ????????? | | #????????????# != #??" ???????? | | ! #????????????# ! #?"" #????!!! | | #????????????# #??T #????!!! | | [ #????????????# #??" """ #????!!? | | #????????????# #??" """ ??????? | | #####????????????# #??# "?? ???????? | | ?????????????????# #??? ! ???????????? | | ?????????????????# #??? ????????????? | | ?????????????????##############??????????????????? | | ?????????????????????????????????????????????????? | | ?????????????????????????????????????????????????? | | ?????????????????????????????????????????????????? | | ?????????????????????????????????????????????????? | | ?????????????????????????????????????????????????? | | ?????????????????????????????????????????????????? | | ?????????????????????????????????????????????????? | | ?????????????????????????????????????????????????? | | ?????????????????????????????????????????????????? | +----------------------------------------------------+ Best States ------------- Heat Dissipation 25 Energy Generation 12 Energy Capacity 190 Sight Range 16 Terrain Scan Range 16 Terrain Scan Density 85 Additional Mass Support 9 Evasion (%) 50 Recoil Reduction 2 Item Schematics ----------------- None Robot Schematics ------------------ None Fabricated ------------ Nothing Alien Tech Used ----------------- None Achievements -------------- \\IAMDERELICT Challenges ------------ None Polymind | -11 -10 -9 -9 -8 -7 -7 -7 -5 -5 -4 ---------- Run | Yrd Mat Mat Min Mat Fac Sto Rec Fac DSF Fac Hosts 5 | 1 1 . . . . 1 . . . 2 Combat Hostiles . | . . . . . . . . . . . Allies . | . . . . . . . . . . . Unique Host Classes 4 | 1 1 . . . . . . . . 2 Average Host Suspicion 50 | 9 77 36 41 53 86 36 11 11 13 64 Unsuspicious Activity 70 | 2 4 . . . . 52 10 . . 2 Returns to Shadow 1 | . . . . . . 1 . . . . Fuzzy Dispatches . | . . . . . . . . . . . Protomatter Created . | . . . . . . . . . . . Used 25 | 5 5 . . . . 5 . . . 10 Decayed . | . . . . . . . . . . . Highest Spend 5 | 5 5 . . . . 5 . . . 5 Game ------ Seed NovaRegenerativePit Manual? 0 Play Time 00:23:54 Cumulative 24.4 hours Start 2024.04.12 @ 00:54:55 End 2024.04.12 @ 03:00:07 Sessions 1 Manual Loads 0 Difficulty Rogue Special Mode Winter2022/Polymind Game No. 31 Rogue 16 Adventurer 0 Explorer 15 Win Type - Total 0 Types 0/0/0/0/0/0/0/0/0 Lore% 15 Gallery% 25 Achievement% 19 Wizard Run 0 Options --------- Layout 1 ASCII 0 Keyboard 0 Movement Mouse Keybinds 0 Fullscreen 1 Font 24/Smallcaps Map View 50x35 Zoom Use 0% Tactical HUD 1 Map Filters NONE Filters NONE Steam 1 RUN: dd241db6-3a9e-411f-9e51-0b604bdd23d1